Cogmind - Beta 9.6 @@@ ROGUE MODE // 2020.07.15 @ 19:41:03 Player: mr_sack Result: Destroyed by B-75 Beast with Magnetic Acceleration Cannon Performance ------------- Evolutions (4) 2000 Regions Visited (12) 2400 Robots Destroyed (106) 530 Value Destroyed (3197) 3197 Prototype IDs (6) 120 Alien Tech Used (0) 0 Bonus (-132) -132 TOTAL SCORE: 8115 Bonus ------- High Alert Combat Kills 24 Friendly Fire -156 Cogmind --------- Core Integrity 0/850 Matter 285/300 Energy 310/310 System Corruption 4% Temperature Cool (12) Movement Core (500) Ox9 Location -6/Lower Caves Parts ------- > --- POWER (1) -------- Heavy Deuterium Engine > --- PROPULSION (4) --- (None) > --- UTILITY (6) ------ Large Storage Unit Triangulator Visual Processing Unit > --- WEAPON (4) ------- (None) > --- INVENTORY (10) --- Reinforced Deuterium Engine Micro Nuclear Core Neutrino Core Improved Terrain Scanner Advanced Melee Analysis Suite Improved Actuator Array Long-range Tractor Beam Improved Datajack Peak State ------------ > --- POWER ------------ Angular Momentum Engine > --- PROPULSION ------- Flexi-carbon Leg Flexi-carbon Leg Flexi-carbon Leg Armored Leg > --- UTILITY ---------- Medium Storage Unit Large Storage Unit Visual Processing Unit Improved Sensor Array Targeting Computer Phase Shifter > --- WEAPON ----------- High-powered Shock Rifle Heavy Plasma Cannon Ion Burst Cannon Advanced Assault Cannon > --- INVENTORY -------- Improved Deuterium Engine Heavy Deuterium Engine Micro Nuclear Core Triangulator Improved Terrain Scanner Advanced Melee Analysis Suite Improved Actuator Array Improved Light Armor Plating Long-range Tractor Beam Plasma Rifle Gauss Rifle Magnetic Acceleration Cannon Proton Missile Launcher Improved Datajack [Rating: 62] Favorites ----------- Power Angular Momentum Engine Engine Angular Momentum Engine Power Core Micro Nuclear Core Propulsion Flexi-carbon Leg Treads Light Treads Leg Flexi-carbon Leg Wheel Wheel Hover Unit Airjet Flight Unit VTOL Module Utility Visual Processing Unit Device Improved Sensor Array Storage Small Storage Unit Processor Visual Processing Unit Hackware Hacking Suite Protection Improved Light Armor Plating Weapon Mining Laser Energy Gun EM Pulse Gun Energy Cannon Ion Burst Cannon Ballistic Gun Gauss Rifle Ballistic Cannon Advanced Assault Cannon Launcher Rocket Array Special Weapon Mining Laser Slashing Weapon Katana Piercing Weapon Spear Special Melee Weapon Datajack Build | -11 -10 -9 -9 -9 -8 -8 -7 -7 -7 -6 -6 -6 ------- Run | Scr Mat Mat Min Exi Min Mat Fac Was Fac Fac Low Low Slots Evolved 8 | . . 2 . . . 2 2 . . 2 . . Power . | . . . . . . . . . . . . . Propulsion 2 | . . 1 . . . 1 . . . . . . Utility 4 | . . 1 . . . 1 1 . . 1 . . Weapon 2 | . . . . . . . 1 . . 1 . . Parts Attached 168 | 10 11 14 . . . 21 31 8 17 34 14 8 Power 19 | 1 4 1 . . . 2 2 1 3 4 . 1 Engine 18 | 1 4 1 . . . 2 1 1 3 4 . 1 Core 1 | . . . . . . . 1 . . . . . Reactor . | . . . . . . . . . . . . . Propulsion 43 | 3 6 5 . . . 7 6 2 4 7 1 2 Treads 5 | . 1 . . . . 2 1 . 1 . . . Leg 7 | . . . . . . 1 1 . . 4 1 . Wheel 8 | 3 1 . . . . 1 . . 2 1 . . Hover 17 | . 1 4 . . . 2 4 2 1 2 . 1 Flight 6 | . 3 1 . . . 1 . . . . . 1 Utility 46 | 3 1 3 . . . 7 8 2 5 9 5 3 Device 25 | 1 1 2 . . . 3 4 2 2 3 5 2 Storage 7 | 1 . . . . . 1 1 . 1 2 . 1 Processor 9 | 1 . 1 . . . 2 2 . 2 1 . . Hackware 1 | . . . . . . 1 . . . . . . Protection 4 | . . . . . . . 1 . . 3 . . Artifact . | . . . . . . . . . . . . . Weapon 60 | 3 . 5 . . . 5 15 3 5 14 8 2 Energy Gun 13 | 3 . 2 . . . . 4 . 1 3 . . Energy Cannon 9 | . . . . . . . 3 . 1 3 1 1 Ballistic Gun 4 | . . . . . . 1 . . . 2 1 . Ballistic Cannon 6 | . . . . . . 1 . . . 1 3 1 Launcher 10 | . . . . . . 2 3 2 1 . 2 . Special Weapon 1 | . . 1 . . . . . . . . . . Impact Weapon . | . . . . . . . . . . . . . Slashing Weapon 10 | . . . . . . . 3 1 1 5 . . Piercing Weapon 1 | . . . . . . . . . 1 . . . Special Melee Weapon 6 | . . 2 . . . 1 2 . . . 1 . Unidentified Prototypes 4 | . . . . . . . 2 . . 2 . . Parts Lost 70 | . . 6 . . . 11 15 7 1 7 6 17 Power 5 | . . . . . . 1 2 1 . . . 1 Propulsion 25 | . . 3 . . . 5 4 3 . 4 2 4 Utility 15 | . . 1 . . . 2 3 1 . 1 1 6 Weapon 25 | . . 2 . . . 3 6 2 1 2 3 6 Highest Loss Streak 11 | . . 5 . . . 10 6 7 1 6 4 11 Average Slot Usage (%) 83 | . 98 94 77 77 77 65 87 63 66 92 98 71 Engine 7 | . 14 11 11 11 11 6 4 4 7 6 6 5 Treads 2 | . 2 . . . . 3 13 . 1 3 . . Leg 7 | . . . . . . . . 4 . 11 24 5 Wheel 1 | . 11 . . . . . . . 9 4 . . Hover 6 | . . 29 11 11 11 9 7 15 3 5 . 3 Device 9 | . 14 9 11 11 11 8 8 5 9 13 6 12 Storage 10 | . 14 11 11 11 11 9 7 4 3 8 13 17 Processor 11 | . . 11 11 11 11 10 16 12 10 11 13 6 Protection 1 | . . . . . . . 3 . . 2 5 . Energy Gun 2 | . 28 17 . . . . 2 8 . 5 1 . Energy Cannon 3 | . . . . . . . 1 . 1 4 11 . Ballistic Gun 1 | . . . . . . 2 . . . 2 4 . Ballistic Cannon 2 | . . . . . . 2 2 . . 1 2 12 Launcher 1 | . . . . . . . 4 . 3 . 2 . Special Weapon 2 | . . . 11 11 11 4 . . . . . . Slashing Weapon 2 | . . . . . . . 5 4 6 5 . . Special Melee Weapon 3 | . . 1 11 11 11 4 1 . . . 3 . Naked Turns 15 | . . . . . . . . 15 . . . . Heaviest Build 71 | 14 14 18 16 16 16 17 46 37 26 70 71 70 Greatest Support 76 | 32 26 27 9 9 9 40 68 36 20 76 76 36 Greatest Overweight (x) 14 | . 3 1 1 1 1 5 14 2 2 3 1 12 Average Overweight (x) . | . . . 1 1 1 . . . . 1 . 2 Largest Inventory Capacity 14 | 6 6 6 6 6 6 8 10 10 6 14 14 14 Average Capacity 8 | 5 6 6 6 6 6 6 7 8 5 10 14 13 Most Carried 14 | 5 6 6 5 5 5 6 6 5 6 14 14 12 Average Carried 7 | 2 5 4 4 5 5 4 4 4 4 9 13 11 Final Capacity 14 | 6 6 6 6 6 6 6 10 4 6 14 14 10 Final Carried 14 | 5 6 3 5 5 5 3 5 3 5 14 12 8 Class Distribution -------------------- 41% | Mutant 27% | Scavenger-Skirmisher 17% | Scavenger-Mutant 6% | Scavenger-Assassin 4% | Scavenger-Gladiator Dominant Class ---------------- Scavenger-Mutant | -10/Materials Mutant | -9/Materials Mutant | -9/Mines Mutant | -9/Exiles Mutant | -8/Mines Mutant | -8/Materials Scavenger-Assassin | -7/Factory Scavenger-Mutant | -7/Waste Scavenger-Mutant | -7/Factory Scavenger-Skirmisher | -6/Factory Scavenger-Skirmisher | -6/Lower Caves Scavenger-Mutant | -6/Lower Caves Resources | -11 -10 -9 -9 -9 -8 -8 -7 -7 -7 -6 -6 -6 ----------- Run | Scr Mat Mat Min Exi Min Mat Fac Was Fac Fac Low Low Matter Collected 2582 | 300 108 107 25 . . 163 439 34 408 288 492 218 Remotely . | . . . . . . . . . . . . . Salvage Created 3303 | 118 180 172 . . . 214 606 43 673 642 479 176 Parts 189 | 10 27 10 . . . 11 44 1 23 35 16 12 Haulers Intercepted 4 | . . 1 . . . 1 2 . . . . . Recyclers Shooed 4 | . . . . . . . . . 2 2 . . Parts Field Recycled . | . . . . . . . . . . . . . Retrieved Matter . | . . . . . . . . . . . . . Parts Self-Destructed 17 | . . . . . . . . . . . 9 8 Prevented 1 | . . . . . . . . . . . 1 . Kills | -11 -10 -9 -9 -9 -8 -8 -7 -7 -7 -6 -6 -6 ------- Run | Scr Mat Mat Min Exi Min Mat Fac Was Fac Fac Low Low Combat Hostiles Destroyed 67 | . 4 4 . . . 8 15 . 4 5 17 10 Melee 10 | . . . . . . . 4 . 4 2 . . Guns 11 | . 4 1 . . . 1 2 . . 2 1 . Cannons 20 | . . . . . . 3 2 . . 1 7 7 AOE 26 | . . 3 . . . 4 7 . . . 9 3 Classes Destroyed 14 | 2 6 1 . . . 1 2 . . 1 1 . Worker 10 | . 1 . . . . . 3 . 4 2 . . Builder 6 | . 1 . . . . . 5 . . . . . Tunneler 6 | 3 . . . . . 1 . . 1 1 . . Hauler 4 | . . 1 . . . 1 2 . . . . . Recycler 7 | 1 . . . . . . . . 4 2 . . Operator 2 | . 1 . . . . . . . 1 . . . Watcher 3 | . 1 . . . . . . . 1 1 . . Swarmer 22 | . 3 . . . . 3 1 . . . 7 8 Grunt 26 | . 1 4 . . . 3 8 . 3 . 7 . Brawler 1 | . . . . . . . . . . 1 . . Duelist 1 | . . . . . . . . . . . 1 . Sentry 7 | . . . . . . 2 1 . 1 1 2 . Hunter 3 | . . . . . . . 1 . . 1 . 1 Programmer 7 | . . . . . . . 4 . . 2 . 1 Thug 1 | . . . . . . . . 1 . . . . Best Kill Streak 8 | 4 5 3 . . . 4 8 . 7 2 7 4 Combat Bots Only 7 | . 4 3 . . . 4 5 . 1 1 7 4 Max Kills in Single Turn 3 | 2 2 3 . . . 2 3 1 1 1 3 3 Gunslinging . | . . . . . . . . . . . . . Exploded 3 | . . 3 . . . 2 2 . . . 3 3 Melee 1 | . . . . . . . 1 . 1 1 . . Uniques/NPCs Destroyed . | . . . . . . . . . . . . . Combat | -11 -10 -9 -9 -9 -8 -8 -7 -7 -7 -6 -6 -6 -------- Run | Scr Mat Mat Min Exi Min Mat Fac Was Fac Fac Low Low Damage Taken 8862 | 74 93 368 . . . 1296 1695 334 336 1551 1329 1786 Core 2057 | 37 9 72 . . . 519 229 181 144 122 185 559 Absorbed by Shields . | . . . . . . . . . . . . . Core Remaining (%) 54 | 85 81 . . . 82 5 . . 20 . . . Volleys Fired 141 | 6 12 15 . . . 25 30 2 3 9 26 13 Largest 4 | 2 2 2 . . . 2 2 2 1 4 4 3 Hottest 298 | 80 80 80 . . . 100 120 110 80 298 261 201 Shots Fired 264 | 10 24 29 . . . 29 43 4 4 28 66 27 Gun 119 | 10 24 29 . . . 4 18 3 . 16 15 . Cannon 100 | . . . . . . 10 13 . 1 12 40 24 Launcher 35 | . . . . . . 5 12 1 3 . 11 3 Special 10 | . . . . . . 10 . . . . . . Kinetic 81 | . . . . . . 14 12 . . 8 24 23 Thermal 75 | 2 . . . . . 10 14 3 1 15 29 1 Explosive 32 | . . . . . . 5 12 1 . . 11 3 Electromagnetic 76 | 8 24 29 . . . . 5 . 3 5 2 . Robot Hit Streak 12 | 5 3 6 . . . 5 12 4 1 5 6 4 Robot Miss Streak 5 | 1 2 2 . . . 2 3 1 1 2 3 5 Penetration Max . | . . . . . . . . . . . . . Secondary Targets . | . . . . . . . . . . . . . Shots Hit Robots 261 | 8 11 15 1 . 3 14 41 2 47 43 62 14 Core Hits 182 | 5 9 10 . . . 15 56 8 18 15 34 12 Critical Hits 4 | . . . . . . . 2 . 1 . . 1 Critical Kills 3 | . . . . . . . 1 . 1 . . 1 Critical Parts Destroyed 1 | . . . . . . . 1 . . . . . Melee Attacks 144 | . . 1 1 . 3 3 24 . 55 37 20 . Impact . | . . . . . . . . . . . . . Slashing 106 | . . . . . . . 23 . 48 35 . . Piercing 9 | . . . . . . . . . 7 2 . . Sneak Attacks 29 | . . 1 1 . 3 1 6 . 9 6 2 . Combat Hostiles 1 | . . . . . . . 1 . . . . . Follow-up Attacks 9 | . . . . . . . . . 6 3 . . Damage Inflicted 11399 | 186 175 627 . . . 523 2451 327 2261 1990 2049 810 Guns 954 | 105 175 212 . . . 35 135 39 . 120 133 . Cannons 1658 | . . . . . . 124 127 . . 187 859 361 Explosions 3841 | 81 . 415 . . . 332 1200 288 19 . 1057 449 Melee 4914 | . . . . . . . 989 . 2242 1683 . . Ramming 8 | . . . . . . 8 . . . . . . Kinetic 847 | . . . . . . 159 56 . . 44 248 340 Thermal 1256 | 107 . . . . . 24 179 39 . 187 699 21 Explosive 3741 | . . 415 . . . 332 1200 288 . . 1057 449 Electromagnetic 633 | 79 175 212 . . . . 27 . 19 76 45 . Impact . | . . . . . . . . . . . . . Slashing 4758 | . . . . . . . 989 . 2086 1683 . . Piercing 156 | . . . . . . . . . 156 . . . Highest Corruption 16 | . . . . . . 10 2 16 16 3 4 4 Average Corruption 5 | . . . . . . 10 1 10 16 1 3 4 Corruption Purged . | . . . . . . . . . . . . . Effects 130 | . . . . . . 12 3 6 47 6 41 15 Message Errors 25 | . . . . . . 3 1 1 7 2 7 4 Matter Fused 26 | . . . . . . 2 . . 9 . 12 3 Heat Flow Errors 14 | . . . . . . 1 1 . 2 2 5 3 Energy Discharges 13 | . . . . . . 1 . 1 1 2 7 1 Parts Rejected 2 | . . . . . . 2 . . . . . . Data Loss (minor) 12 | . . . . . . . . 2 2 . 6 2 Data Loss (major) 2 | . . . . . . . . 1 1 . . . Misfires 1 | . . . . . . . . . 1 . . . Alerts 1 | . . . . . . . . . 1 . . . Misdirections 11 | . . . . . . 1 . 1 9 . . . Targeting Errors 23 | . . . . . . 2 1 . 14 . 4 2 Overload Shots . | . . . . . . . . . . . . . Overflow Damage 1282 | . . . . . . 54 119 . 682 373 32 22 Projectiles 36 | . . . . . . . . . . 4 21 11 Explosions 76 | . . . . . . 54 . . . . 11 11 Melee 1170 | . . . . . . . 119 . 682 369 . . Knockbacks 7 | . . . . . . . 1 . . . 2 4 Impact . | . . . . . . . . . . . . . Kinetic 6 | . . . . . . . 1 . . . 2 3 Secondary 1 | . . . . . . . . . . . . 1 Self-Inflicted Damage 538 | 74 . . . . . 252 75 42 . . 26 69 Shots 15 | 2 . . . . . 4 5 2 . . 1 1 Rammed 2 | . . . . . . 2 . . . . . . Targets Rammed 2 | . . . . . . 2 . . . . . . Kicked . | . . . . . . . . . . . . . Crushed . | . . . . . . . . . . . . . Highest Temperature 499 | 48 168 87 . . . 227 219 39 248 360 499 245 Average Temperature 107 | 23 63 29 . . . 41 67 13 102 110 208 54 Received Heat Transfer 1506 | . 30 99 . . . 261 501 . 159 39 297 120 Effects 9 | . . . . . . . 1 . . . 8 . Shutdowns 3 | . . . . . . . . . . . 3 . Energy Bleed 1 | . . . . . . . 1 . . . . . Interference 3 | . . . . . . . . . . . 3 . Short Circuit 2 | . . . . . . . . . . . 2 . Siege Activations . | . . . . . . . . . . . . . Robots Corrupted . | . . . . . . . . . . . . . Combat Hostiles . | . . . . . . . . . . . . . Parts Fried . | . . . . . . . . . . . . . Impact Corruptions . | . . . . . . . . . . . . . Robots Melted . | . . . . . . . . . . . . . Combat Hostiles . | . . . . . . . . . . . . . Parts Melted 1 | 1 . . . . . . . . . . . . Heat Transferred 1894 | 224 . . . . . 50 296 74 . 350 875 25 Parts Sabotaged . | . . . . . . . . . . . . . Parts Stolen . | . . . . . . . . . . . . . Parts Stripped . | . . . . . . . . . . . . . Power Chain Reactions 2 | 2 . . . . . . . . . . . . Missiles Intercepted . | . . . . . . . . . . . . . Alert | -11 -10 -9 -9 -9 -8 -8 -7 -7 -7 -6 -6 -6 ------- Run | Scr Mat Mat Min Exi Min Mat Fac Was Fac Fac Low Low Peak Influence 529 | 20 157 216 74 . 6 198 529 211 351 219 . . Average Influence 104 | 6 100 124 46 . 3 57 123 178 203 86 . . Maximum Alert Level 2 | . . 1 . . . . 2 1 1 1 . . Low Security (%) 80 | 100 100 71 100 . 100 100 70 79 44 91 . . Level 1 17 | . . 28 . . . . 23 20 55 8 . . Level 2 1 | . . . . . . . 6 . . . . . Level 3 . | . . . . . . . . . . . . . Level 4 . | . . . . . . . . . . . . . Level 5 . | . . . . . . . . . . . . . High Security . | . . . . . . . . . . . . . Max Security . | . . . . . . . . . . . . . Squads Dispatched 16 | . 2 1 . . . 2 6 . 2 3 . . Investigation 5 | . 1 1 . . . . 1 . . 2 . . Extermination 3 | . . . . . . . 2 . . 1 . . Reinforcement 8 | . 1 . . . . 2 3 . 2 . . . Assault . | . . . . . . . . . . . . . Garrison . | . . . . . . . . . . . . . Intercept . | . . . . . . . . . . . . . Construction Impeded 1 | . . . . . . . 1 . . . . . Haulers Reinforced 2 | . . . . . . . 2 . . . . . Stealth | -11 -10 -9 -9 -9 -8 -8 -7 -7 -7 -6 -6 -6 --------- Run | Scr Mat Mat Min Exi Min Mat Fac Was Fac Fac Low Low Distress Signals 2 | . . 1 . . . . 1 . . . . . Communications Jammed . | . . . . . . . . . . . . . Distress Signals . | . . . . . . . . . . . . . Times Spotted 141 | . 7 24 . . . 17 24 6 18 22 15 8 Peak Tracking Total 17 | . 5 17 . . . 5 7 6 5 7 5 4 Tactical Retreats 18 | . 1 5 . . . 2 5 . 4 . 1 . Traps | -11 -10 -9 -9 -9 -8 -8 -7 -7 -7 -6 -6 -6 ------- Run | Scr Mat Mat Min Exi Min Mat Fac Was Fac Fac Low Low Traps Triggered 4 | . . 1 . . . . 1 . . 2 . . Indirectly . | . . . . . . . . . . . . . Trap Hack Attempts . | . . . . . . . . . . . . . Triggered . | . . . . . . . . . . . . . Disarmed . | . . . . . . . . . . . . . Reprogrammed . | . . . . . . . . . . . . . Reused . | . . . . . . . . . . . . . Traps Extracted . | . . . . . . . . . . . . . Installed . | . . . . . . . . . . . . . Triggered . | . . . . . . . . . . . . . Machines | -11 -10 -9 -9 -9 -8 -8 -7 -7 -7 -6 -6 -6 ---------- Run | Scr Mat Mat Min Exi Min Mat Fac Was Fac Fac Low Low Machines Disabled 19 | . . 2 . . . 3 8 . 6 . . . Max in Single Turn 4 | . . 2 . . . 2 3 . 4 . . . Machines Sabotaged . | . . . . . . . . . . . . . Garrisons Compromised . | . . . . . . . . . . . . . Overloaded Fab Kills . | . . . . . . . . . . . . . Fab Network Shutdowns . | . . . . . . . . . . . . . Hacking | -11 -10 -9 -9 -9 -8 -8 -7 -7 -7 -6 -6 -6 --------- Run | Scr Mat Mat Min Exi Min Mat Fac Was Fac Fac Low Low Machines Accessed 23 | . 1 3 . 4 1 3 6 . 1 4 . . Terminals 13 | . 1 2 . . 1 3 3 . 1 2 . . Fabricators 2 | . . . . . . . 1 . . 1 . . Repair Stations 1 | . . 1 . . . . . . . . . . Recycling Units 2 | . . . . . . . 1 . . 1 . . Scanalyzers . | . . . . . . . . . . . . . Garrison Access 1 | . . . . . . . 1 . . . . . Total Hacks 59 | . 4 8 . 4 3 13 15 . 4 8 . . Successful 26 | . 2 3 . 4 2 7 5 . 1 2 . . Failed 32 | . 1 5 . . 1 6 10 . 3 6 . . Catastrophic 9 | . 1 2 . . . 2 1 . 1 2 . . Database Lockouts 4 | . 4 . . . . . . . . . . . Manual 35 | . 7 5 . 1 1 9 6 . 4 2 . . Terminals 42 | . 4 5 . . 3 13 8 . 4 5 . . Fabricators 4 | . . . . . . . 2 . . 2 . . Repair Stations 3 | . . 3 . . . . . . . . . . Recycling Units 4 | . . . . . . . 3 . . 1 . . Scanalyzers . | . . . . . . . . . . . . . Garrison Access 2 | . . . . . . . 2 . . . . . Terminal Hacks 19 | . 2 1 . 4 2 7 2 . 1 . . . Record 4 | . . . . 4 . . . . . . . . Part Schematic 3 | . 1 . . . . 1 . . 1 . . . Prototype ID Bank 1 | . . . . . . 1 . . . . . . Branch Access Points 1 | . . 1 . . . . . . . . . . Terminal Index 4 | . 1 . . . 1 1 1 . . . . . Unreport Threat 1 | . . . . . . 1 . . . . . . Locate Traps 2 | . . . . . . 2 . . . . . . Investigation Status 1 | . . . . . 1 . . . . . . . Recall Extermination 1 | . . . . . . . 1 . . . . . Recall Reinforcements 1 | . . . . . . 1 . . . . . . Fabricator Hacks 3 | . . . . . . . 2 . . 1 . . Load Schematic 1 | . . . . . . . 1 . . . . . Build 2 | . . . . . . . 1 . . 1 . . Repair Station Hacks 2 | . . 2 . . . . . . . . . . Scan Component 1 | . . 1 . . . . . . . . . . Repair 1 | . . 1 . . . . . . . . . . Recycling Unit Hacks 2 | . . . . . . . 1 . . 1 . . Process 1 | . . . . . . . 1 . . . . . Report Inventory 1 | . . . . . . . . . . 1 . . Scanalyzer . | . . . . . . . . . . . . . Garrison Access Hacks . | . . . . . . . . . . . . . Unauthorized Hacks . | . . . . . . . . . . . . . Terminals . | . . . . . . . . . . . . . Fabricators . | . . . . . . . . . . . . . Repair Stations . | . . . . . . . . . . . . . Recycling Units . | . . . . . . . . . . . . . Scanalyzers . | . . . . . . . . . . . . . Garrison Access . | . . . . . . . . . . . . . Data Cores Recovered . | . . . . . . . . . . . . . Used . | . . . . . . . . . . . . . Hacking Detections 17 | . 1 2 . . 1 3 6 . 1 3 . . Full Trace Events 2 | . . . . . . . 1 . . 1 . . Feedback Events 1 | . . . . . . . 1 . . . . . Corruption 1 | . . . . . . . 1 . . . . . Feedback Blocked . | . . . . . . . . . . . . . Robot Schematics Acquired . | . . . . . . . . . . . . . Robots Built . | . . . . . . . . . . . . . Matter . | . . . . . . . . . . . . . Time . | . . . . . . . . . . . . . Total Robot Build Rating . | . . . . . . . . . . . . . Part Schematics Acquired 3 | . 1 . . . . 1 . . 1 . . . Parts Built 4 | . . . . . . . 2 . . 2 . . Matter 336 | . . . . . . . 124 . . 212 . . Time 168 | . . . . . . . 62 . . 106 . . Total Part Build Rating 16 | . . . . . . . 4 . . 12 . . Parts Repaired 1 | . . 1 . . . . . . . . . . Time 26 | . . 26 . . . . . . . . . . Parts Recycled . | . . . . . . . . . . . . . Recycled Matter 11 | . . . . . . . 11 . . . . . Retrieved Matter . | . . . . . . . . . . . . . Retrieved Components . | . . . . . . . . . . . . . Parts Scanalyzed . | . . . . . . . . . . . . . Part Schematics Acquired . | . . . . . . . . . . . . . Parts Damaged . | . . . . . . . . . . . . . Bothacking | -11 -10 -9 -9 -9 -8 -8 -7 -7 -7 -6 -6 -6 ------------ Run | Scr Mat Mat Min Exi Min Mat Fac Was Fac Fac Low Low Used RIF Installer . | . . . . . . . . . . . . . Robots Hacked 3 | . . 1 . . 1 1 . . . . . . Non-combat 3 | . . 1 . . 1 1 . . . . . . Combat . | . . . . . . . . . . . . . Robot Hacks Applied 4 | . . 1 . . 2 1 . . . . . . parse_system 1 | . . . . . 1 . . . . . . . no_distress 3 | . . 1 . . 1 1 . . . . . . Relay Couplers Released . | . . . . . . . . . . . . . Robots Rewired 1 | . . . . . . . . . . . 1 . Allies Hacked . | . . . . . . . . . . . . . Hacks Repelled . | . . . . . . . . . . . . . Allies | -11 -10 -9 -9 -9 -8 -8 -7 -7 -7 -6 -6 -6 -------- Run | Scr Mat Mat Min Exi Min Mat Fac Was Fac Fac Low Low Total Allies 3 | . . . . . . . . 1 . . 1 1 Largest Group 1 | . . . . . . . . 1 . . 1 1 Highest-Rated Group 163 | . . . . . . . . 31 . . 29 163 Highest-Rated Ally 163 | . . . . . . . . 31 . . 29 163 Total Orders 1 | . . . . . . . . . . . 1 . GUARD 1 | . . . . . . . . . . . 1 . Ally Attacks 8 | . . . . . . . . 7 . . 1 . Total Damage 143 | . . . . . . . . 124 . . 19 . Kills . | . . . . . . . . . . . . . Allies Corrupted . | . . . . . . . . . . . . . Allies Melted . | . . . . . . . . . . . . . Intel | -11 -10 -9 -9 -9 -8 -8 -7 -7 -7 -6 -6 -6 ------- Run | Scr Mat Mat Min Exi Min Mat Fac Was Fac Fac Low Low Robot Analysis Total . | . . . . . . . . . . . . . Derelict Logs Recovered 2 | . . . 1 . . . . . . . 1 . Drone Launches . | . . . . . . . . . . . . . Drone Recoveries . | . . . . . . . . . . . . . Exploration | -11 -10 -9 -9 -9 -8 -8 -7 -7 -7 -6 -6 -6 ------------- Run | Scr Mat Mat Min Exi Min Mat Fac Was Fac Fac Low Low Turns Passed 8703 | 82 191 354 641 1141 164 459 1180 122 714 1256 1657 742 Spaces Moved 5677 | 50 116 443 359 899 132 326 617 164 596 769 883 323 Core 250 | 1 1 . . . . 53 1 66 122 . . 6 Treads 472 | . 2 . . . . 49 411 . . 10 . . Legs 1509 | . . . . . . 3 . . . 329 883 294 Wheels 1011 | 49 56 . . . . 2 . . 474 430 . . Hover 2353 | . 1 421 359 899 132 215 205 98 . . . 23 Flight 82 | . 56 22 . . . 4 . . . . . . Fastest Speed 34 | 50 90 34 120 120 120 52 48 50 50 90 120 150 Average Speed 117 | 95 107 52 120 120 120 93 139 59 83 117 142 213 Slowest Speed 750 | 100 200 120 120 120 120 300 750 150 100 180 150 650 Overloaded Moves . | . . . . . . . . . . . . . Propulsion Burnouts . | . . . . . . . . . . . . . Robots Hopped . | . . . . . . . . . . . . . Cave-ins Triggered 2 | . . . . . . 1 . . . . 1 . Exploration Rate (%) 42 | 4 16 34 75 93 34 31 18 96 11 23 78 38 Regions Visited 12 Branch Regions 5 Pre-discovered Areas . | . . . . . . . . . . . . . Known Exits Taken 2 | . . 1 . . 1 . . . . . . . Unknown Exits Taken 8 | 1 1 . 1 1 . 1 . . 1 1 1 . Scrap Searched 5 | . . . 2 . . . . . . . 3 . Spaces Dug 8 | . . . . . . 8 . . . . . . Terrain Destroyed 645 | 6 . 44 . . . 81 291 25 . 2 144 52 Melee . | . . . . . . . . . . . . . Projectile 25 | . . . . . . 8 . . . 2 8 7 AOE 620 | 6 . 44 . . . 73 291 25 . . 136 45 Actions | -11 -10 -9 -9 -9 -8 -8 -7 -7 -7 -6 -6 -6 --------- Run | Scr Mat Mat Min Exi Min Mat Fac Was Fac Fac Low Low Total 7196 | 69 162 532 568 961 134 425 837 181 730 1043 1204 350 Wait 969 | . 4 51 207 63 . 45 117 6 56 156 259 5 Move 5665 | 49 115 442 358 898 131 324 617 163 595 768 882 323 Hop . | . . . . . . . . . . . . . Pick Up 48 | 3 7 2 2 . . . 9 . 6 16 2 1 Fast Attach 86 | 8 4 7 . . . 13 16 4 11 19 1 3 Attach 34 | . . 4 . . . 5 8 3 2 3 4 5 Detach 15 | 1 . 1 . . . 3 4 2 . 4 . . Swap 49 | 2 7 3 . . . 3 8 1 4 12 9 . Drop 54 | . 13 6 . . . 1 4 . 5 24 1 . Fire 141 | 6 12 15 . . . 25 30 2 3 9 26 13 Melee 132 | . . 1 1 . 3 3 24 . 48 32 20 . Ram 2 | . . . . . . 2 . . . . . . Kick . | . . . . . . . . . . . . . Crush . | . . . . . . . . . . . . . Escape Stasis 1 | . . . . . . 1 . . . . . . Rewire . | . . . . . . . . . . . . . Trap . | . . . . . . . . . . . . . Miscellaneous . | . . . . . . . . . . . . . Route ------- -11/Scrapyard -10/Materials -9/Materials (discovered 4 exits: *Min x2 / Sto x2) -9/Mines (discovered 2 exits: *Mat / *Exi) -9/Exiles (discovered 2 exits: *Min x2) -8/Mines (discovered 2 exits: *Mat x2) -8/Materials -7/Factory -7/Waste -7/Factory -6/Factory -6/Lower Caves -6/Lower Caves History --------- Turn | Location | Event 19 | -11/Scrapyard | Discovered new exit (range 16) 83 | -11/Scrapyard | Entered Materials 90 | -10/Materials | Central database locked down 256 | -10/Materials | Discovered new exit (range 16) 274 | -10/Materials | Entered another Materials area 274 | -9/Materials | Evolved 2 slots: Propulsion x1, Utility x1 359 | -9/Materials | Repaired EM Pulse Gun 563 | -9/Materials | Identified exit to Mines 563 | -9/Materials | Identified exit to Storage 566 | -9/Materials | Build established: Mutant 628 | -9/Materials | Entered Mines 650 | -9/Mines | Lost 5 parts (3n2w) 733 | -9/Mines | Received a Rocket Launcher from a helpful Derelict 887 | -9/Mines | Identified exit to Materials 1261 | -9/Mines | Deemed a non-threat by the Exiles lab entrance 1262 | -9/Mines | Discovered new exit (range 5) 1269 | -9/Mines | Entered Exiles 1269 | -9/Exiles | Found Exiles lab abandoned 1290 | -9/Exiles | Discovered new exit (range 15) 2014 | -9/Exiles | Discovered new exit (range 15) 2410 | -9/Exiles | Entered Mines 2457 | -8/Mines | Discovered exit to Materials (range 13) 2460 | -8/Mines | Discovered exit to Materials (range 10) 2574 | -8/Mines | Entered Materials 2574 | -8/Materials | Evolved 2 slots: Propulsion x1, Utility x1 2810 | -8/Materials | Crushed by falling debris 2811 | -8/Materials | System corruption reached 10% 2824 | -8/Materials | Core integrity fell below 50% 2866 | -8/Materials | Core integrity fell below 20% 2893 | -8/Materials | Lost 10 parts (1p4n2u3w) 3003 | -8/Materials | Discovered new exit (range 18) 3033 | -8/Materials | Entered Factory 3033 | -7/Factory | Evolved 2 slots: Utility x1, Weapon x1 3228 | -7/Factory | Found Prototype Launcher 3228 | -7/Factory | Identified Rocket Array 3231 | -7/Factory | Found Rocket Array 3258 | -7/Factory | Found Rocket Array 3330 | -7/Factory | Build established: Scavenger-Assassin 3760 | -7/Factory | Fabricated Imp. Hover Unit (x2) 3824 | -7/Factory | Lost 5 parts (1p1n1u2w) 4088 | -7/Factory | Build established: Mutant 4195 | -7/Factory | Lost 6 parts (1p1n2u2w) 4213 | -7/Factory | Sucked down chute 4213 | -7/Factory | Entered Waste 4214 | -7/Waste | Met a frightened Derelict 4228 | -7/Waste | EMP discharged 4228 | -7/Waste | System corruption reached 10% 4254 | -7/Waste | Spotted C-40 Crusher 4262 | -7/Waste | Spotted C-40 Crusher 4289 | -7/Waste | Crushed by Compactor (1 part destroyed, 2 dropped) 4289 | -7/Waste | Spotted C-40 Crusher 4292 | -7/Waste | Crushed by Compactor (1 part destroyed, 2 dropped) 4295 | -7/Waste | Crushed by Compactor (1 part destroyed, 2 dropped) 4300 | -7/Waste | Crushed by Compactor (1 part destroyed, 2 dropped) 4314 | -7/Waste | Spotted C-40 Crusher 4314 | -7/Waste | Spotted C-40 Crusher 4314 | -7/Waste | Spotted C-40 Crusher 4316 | -7/Waste | Crushed by Compactor (1 part destroyed, 1 dropped) 4317 | -7/Waste | Core integrity fell below 50% 4322 | -7/Waste | Discovered new exit (range 14) 4328 | -7/Waste | EMP discharged 4335 | -7/Waste | Entered Factory 4347 | -7/Factory | Lost 7 parts (1p3n1u2w) 4414 | -7/Factory | Discovered new exit (range 16) 4962 | -7/Factory | Build established: Scavenger-Mutant 5049 | -7/Factory | Entered another Factory area 5049 | -6/Factory | Evolved 2 slots: Utility x1, Weapon x1 5603 | -6/Factory | Build established: Scavenger-Gladiator 5751 | -6/Factory | Lost 6 parts (3n1u2w) 5998 | -6/Factory | Build established: Scavenger-Skirmisher 6171 | -6/Factory | Fabricated Adv. Shield Generator (x2) 6255 | -6/Factory | Found Rocket Array 6293 | -6/Factory | Discovered new exit (range 11) 6305 | -6/Factory | Entered Lower Caves 6404 | -6/Lower Caves | Spotted B-75 Beast 6560 | -6/Lower Caves | Attracted the attention of an 0b10 outpost 6603 | -6/Lower Caves | Crushed by falling debris 7630 | -6/Lower Caves | Attracted the attention of an 0b10 checkpoint 7831 | -6/Lower Caves | Lost 4 parts (2n1u1w) 7879 | -6/Lower Caves | Destroyed 7 combat bots 7927 | -6/Lower Caves | Discovered new exit (range 12) 7933 | -6/Lower Caves | Learned Factory terminal intel 7962 | -6/Lower Caves | Entered another Lower Caves area 8056 | -6/Lower Caves | Lost 3 parts (1n1u1w) 8104 | -6/Lower Caves | Core integrity fell below 50% 8318 | -6/Lower Caves | Build established: Scavenger-Mutant 8561 | -6/Lower Caves | Spotted B-75 Beast 8677 | -6/Lower Caves | Core integrity fell below 20% 8704 | -6/Lower Caves | Destroyed by B-75 Beast with Magnetic Acceleration Cannon Last Messages --------------- 08485_ |=MF#OUCGT3EGSF:KVOS71IBPHHA 08549_ System corrupted: Matter fused (-7). 08563_ Imp. Heat Sink destroyed. 08590_ System corrupted: Heat flow error (+111). 08617_ Arm. Leg destroyed. 08623_ Com. Battery destroyed. 08626_ Magnetic Acceleration Cannon destroyed. 08647_ System corrupted: Heat flow error (+102). 08654_ Med. Storage Unit destroyed. 08654_ Angular Momentum Engine destroyed. 08657_ Phase Shifter destroyed. 08657_ VTOL Module destroyed. A strange signal echoes through the caves. 08671_ Gravmag System destroyed. 08671_ Imp. Sensor Array destroyed. 08673_ >UL48S7Y7O